bitfinex/quotes_SOLUSD_20240615
["timestamp","ask_amount","ask_price","bid_price","bid_amount"]
[1718479518789,22.4004,144.43,144.38,5.64]
[1718479519309,22.4004,144.43,144.36,0.34]
[1718479519494,22.4004,144.43,144.37,0.17]
[1718479519708,22.4004,144.43,144.37,0.34]
[1718479521804,28.0404,144.43,144.37,5.98]
[1718479523104,22.4004,144.43,144.38,5.64]
[1718479533330,22.4004,144.43,144.39,5.64]
[1718479535299,22.4004,144.43,144.4,5.64]
[1718479538200,16.1153,144.43,144.41,5.64]
[1718479539299,42.4169,144.47,144.41,5.64]
[1718479539528,34.7337,144.47,144.41,5.64]
[1718479539717,42.4169,144.47,144.41,5.64]
[1718479540218,34.7337,144.47,144.41,5.64]
[1718479540424,29.6113,144.47,144.41,5.64]
[1718479540811,34.7334,144.47,144.41,5.64]
[1718479542328,29.6113,144.47,144.41,5.64]
[1718479544721,2.5613,144.46,144.41,5.64]
[1718479544931,13.3239,144.46,144.4,5.64]
[1718479545231,8.2013,144.46,144.4,5.64]
[1718479545412,13.3238,144.46,144.4,5.64]
[1718479545609,8.2013,144.46,144.4,5.64]
[1718479546129,8.2012,144.46,144.4,5.64]
[1718479546426,5.64,144.46,144.4,5.64]
[1718479548831,23.9713,144.47,144.41,5.64]
[1718479549132,5.64,144.46,144.41,5.64]
[1718479551314,5.64,144.46,144.4,5.64]
[1718479552921,5.64,144.44,144.37,0.17]
[1718479553111,6.387,144.42,144.35,20.0]
[1718479553432,6.387,144.42,144.37,5.64]
[1718479553918,12.027,144.42,144.36,5.64]
[1718479554229,12.027,144.42,144.37,20.0]
[1718479554839,6.387,144.42,144.37,25.64]
[1718479559136,6.387,144.42,144.37,20.0]
[1718479559367,6.387,144.42,144.37,5.64]
[1718479561731,6.387,144.42,144.38,5.64]
[1718479563061,6.387,144.42,144.36,0.34]
[1718479563258,6.387,144.42,144.38,5.64]
[1718479566971,6.387,144.42,144.37,5.64]
[1718479567739,6.387,144.42,144.38,5.64]
[1718479570161,15.8705,144.43,144.37,0.17]
[1718479570325,15.8705,144.43,144.4,5.64]
[1718479570846,15.8705,144.43,144.41,5.64]
[1718479571030,15.8705,144.43,144.4,5.64]
[1718479576445,6.4671,144.45,144.42,5.64]
[1718479576747,6.4671,144.45,144.43,5.64]
[1718479579329,15.793,144.47,144.42,0.17]
[1718479579529,15.793,144.47,144.42,20.68]
[1718479580149,15.793,144.47,144.43,5.64]
[1718479581260,6.4671,144.49,144.43,5.64]
[1718479581559,15.793,144.5,144.44,5.64]
[1718479581765,15.793,144.5,144.42,0.51]
[1718479581766,15.793,144.5,144.45,5.64]
[1718479584857,15.793,144.5,144.42,1.89434344]
[1718479585072,15.793,144.5,144.43,0.17]
[1718479585271,15.793,144.5,144.43,0.68]
[1718479585934,6.4671,144.48,144.41,20.0]
[1718479586136,5.64,144.47,144.38,16.6177]
[1718479586341,21.433,144.46,144.36,100.0]
[1718479586550,21.433,144.46,144.4,5.64]
[1718479587367,15.793,144.46,144.41,5.64]
[1718479588267,15.793,144.46,144.36,120.78]
[1718479588268,15.793,144.46,144.39,0.17]
[1718479588565,15.793,144.46,144.43,5.64]
[1718479591871,15.793,144.46,144.44,5.64]
[1718479599979,6.4671,144.48,144.45,5.64]
[1718479600577,6.4671,144.48,144.43,0.17]
[1718479600782,6.4671,144.48,144.43,0.34]
[1718479600955,6.4671,144.48,144.44,0.17]
[1718479601157,6.4671,144.48,144.44,0.51]
[1718479603577,6.4671,144.48,144.42,20.0]
[1718479603785,12.1071,144.48,144.42,5.64]
[1718479603988,12.1071,144.48,144.43,20.0]
[1718479604982,6.4671,144.48,144.43,25.64]
[1718479605171,6.4671,144.48,144.43,5.64]
[1718479605366,16.6117,144.45,144.36,100.0]
[1718479605569,16.6117,144.45,144.35,22.0486802]
[1718479605570,19.1731,144.45,144.35,22.0486802]
[1718479605760,16.6117,144.45,144.4,5.64]
[1718479605963,16.6117,144.45,144.35,27.6886802]
[1718479606163,16.6117,144.45,144.4,5.64]
[1718479606384,16.6117,144.45,144.41,5.64]
[1718479608394,16.6117,144.45,144.4,5.64]
[1718479611712,16.6117,144.45,144.41,5.81]
[1718479612364,16.6117,144.45,144.41,5.64]
[1718479613000,16.6117,144.45,144.4,5.64]
[1718479613201,16.6117,144.45,144.41,5.64]
[1718479633499,16.6117,144.45,144.42,5.64]
[1718479634213,16.6117,144.45,144.43,5.64]
[1718479634818,6.4671,144.48,144.44,5.64]
[1718479635030,6.4671,144.48,144.45,5.64]
[1718479637006,20.8921,144.51,144.45,5.64]
[1718479637409,15.2521,144.51,144.45,5.64]
[1718479637616,23.4524,144.51,144.45,5.64]
[1718479638621,20.8921,144.51,144.45,5.64]
[1718479638801,23.4524,144.51,144.45,5.64]
[1718479639516,28.5731,144.51,144.43,0.34]
[1718479639730,36.2543,144.51,144.43,0.34]
[1718479639921,28.5731,144.51,144.43,0.34]
[1718479640328,36.2542,144.51,144.43,0.34]
[1718479640626,20.8921,144.51,144.43,0.34]
[1718479640832,23.4525,144.51,144.43,0.34]
[1718479641912,20.8921,144.51,144.43,0.34]
[1718479642113,23.4524,144.51,144.43,0.34]
[1718479642514,20.8921,144.51,144.43,0.34]
[1718479642735,23.4524,144.51,144.43,0.34]
[1718479643230,20.8921,144.51,144.43,0.34]
[1718479644311,23.4524,144.51,144.43,0.34]
[1718479644539,20.8921,144.51,144.43,0.34]
[1718479646715,19.3921,144.51,144.43,0.34]
[1718479648468,13.7521,144.51,144.47,5.64]
[1718479650159,13.7521,144.51,144.48,5.64]
[1718479652734,13.7521,144.51,144.47,5.64]
[1718479654450,13.7521,144.51,144.48,5.64]
[1718479655457,25.9196044,144.55,144.49,5.64]
[1718479655759,23.3598044,144.55,144.51,5.64]
[1718479656054,23.3598044,144.55,144.52,5.64]
[1718479656268,23.3598044,144.55,144.53,5.64]
[1718479657327,23.3598044,144.55,144.52,5.64]
[1718479658661,23.3598044,144.55,144.51,0.17]
[1718479658882,0.8495044,144.55,144.53,5.64]
[1718479659048,0.8495044,144.55,144.54,5.64]
[1718479663567,0.8495044,144.55,144.54,25.98]
[1718479663768,0.8495044,144.55,144.54,26.15]
[1718479668146,0.8495044,144.55,144.54,26.32]
[1718479675388,0.8495044,144.55,144.54,31.96]
[1718479679588,0.8495044,144.55,144.54,26.32]
[1718479679900,0.8495044,144.55,144.54,26.15]
[1718479680270,0.8495044,144.55,144.54,25.64]
[1718479681592,0.8495044,144.55,144.54,20.0]
[1718479681905,0.8495044,144.55,144.53,5.64]
[1718479683105,0.8495044,144.55,144.54,5.64]
[1718479683286,0.8495044,144.55,144.54,5.81]
[1718479683487,0.8495044,144.55,144.54,25.81]
[1718479684594,0.8495044,144.55,144.54,26.15]
[1718479686709,0.8495044,144.55,144.54,26.32]
[1718479686898,0.8495044,144.55,144.54,31.96]
[1718479687780,0.8495044,144.55,144.54,26.32]
[1718479696017,0.8495044,144.55,144.54,131.96]
[1718479696231,0.8495044,144.55,144.54,148.88]
[1718479698934,6.5457,144.61,144.55,0.17]
[1718479699113,6.5457,144.61,144.6,5.64]
[1718479702022,15.433,144.62,144.6,5.64]
[1718479702343,6.0227,144.65,144.61,5.64]
[1718479702527,6.0227,144.65,144.63,5.64]
[1718479702934,6.0227,144.65,144.64,5.64]
[1718479703135,16.6244,144.66,144.64,5.64]
[1718479703731,16.6244,144.66,144.65,5.64]
[1718479704847,23.4966044,144.69,144.65,5.64]
[1718479705232,23.4966044,144.69,144.66,5.64]
[1718479705959,23.4966044,144.69,144.67,5.64]
[1718479706832,23.4966044,144.69,144.66,5.64]
[1718479707952,23.4966044,144.69,144.67,5.64]
[1718479708255,23.4966044,144.69,144.66,5.64]
[1718479708959,29.1366044,144.69,144.63,5.64]
[1718479709129,31.6938044,144.69,144.63,5.64]
[1718479709329,29.1366044,144.69,144.63,5.64]
[1718479709530,23.4966044,144.69,144.64,5.64]
[1718479709748,23.4966044,144.69,144.65,5.64]
[1718479710946,23.4966044,144.69,144.66,5.64]
[1718479712435,23.4966044,144.69,144.65,5.64]
[1718479712642,23.4966044,144.69,144.62,22.56]
[1718479712849,23.4966044,144.69,144.63,20.51]
[1718479713044,23.4966044,144.69,144.64,5.64]
[1718479713349,29.1366044,144.69,144.64,5.64]
[1718479713953,23.4966044,144.69,144.65,5.64]
[1718479714158,23.4966044,144.69,144.66,5.64]
[1718479715370,23.4966044,144.69,144.63,20.0]
[1718479715529,23.4966044,144.69,144.64,5.64]
[1718479716768,2.5575,144.67,144.61,20.0]
[1718479716969,5.64,144.66,144.6,5.64]
[1718479717665,7.6724,144.68,144.6,5.64]
[1718479717865,5.64,144.66,144.6,5.64]
[1718479721861,46.5122044,144.69,144.61,5.64]
[1718479721862,5.64,144.67,144.61,5.64]
[1718479722374,5.64,144.67,144.57,0.17]
[1718479722534,5.64,144.65,144.57,20.0]
[1718479722735,5.64,144.64,144.58,5.64]
[1718479722961,5.64,144.63,144.57,20.0]
[1718479723257,5.64,144.62,144.56,5.64]
[1718479723466,5.64,144.65,144.59,5.64]
[1718479723936,5.64,144.65,144.55,105.64]
[1718479724258,5.64,144.65,144.59,5.64]
[1718479727350,5.64,144.65,144.56,0.17]
[1718479727542,5.64,144.64,144.56,20.68]
[1718479727739,5.64,144.63,144.56,20.51]
[1718479727938,6.5206,144.61,144.57,5.64]
[1718479736480,6.5206,144.61,144.54,20.0]
[1718479736692,12.1606,144.61,144.55,0.34]
[1718479736890,12.1606,144.61,144.56,5.64]
[1718479738511,6.5206,144.61,144.54,0.34]
[1718479738698,6.5206,144.61,144.58,5.64]
[1718479742222,6.5206,144.61,144.39,37.73601487]
[1718479742223,6.5206,144.61,144.51,377.52754668]
[1718479742397,6.5206,144.61,144.56,5.64]
[1718479749041,6.5206,144.61,144.55,5.98]
[1718479749255,6.5206,144.61,144.58,5.64]
[1718479749566,6.5206,144.61,144.59,5.64]
[1718479751245,6.5206,144.61,144.58,5.64]
[1718479752266,6.5206,144.61,144.57,5.64]
[1718479752523,6.5206,144.61,144.56,5.64]
[1718479753177,6.5206,144.61,144.57,5.64]
[1718479753578,6.5206,144.61,144.56,5.64]
[1718479753789,6.5206,144.61,144.54,0.17]
[1718479753790,12.1606,144.61,144.54,0.17]
[1718479753997,5.64,144.6,144.54,0.34]
[1718479754204,5.64,144.6,144.53,0.51]
[1718479754400,5.64,144.6,144.54,5.64]
[1718479754577,5.64,144.6,144.55,5.64]
[1718479758082,5.64,144.6,144.54,5.64]
[1718479759609,5.64,144.58,144.49,0.17]
[1718479759906,5.64,144.58,144.52,5.64]
[1718479760216,15.9933,144.59,144.52,5.64]
[1718479760402,15.9933,144.59,144.53,5.64]
[1718479760807,15.9933,144.59,144.51,0.17]
[1718479761095,15.9933,144.59,144.49,0.51]
[1718479761096,15.9933,144.59,144.52,5.64]
[1718479763121,15.9933,144.59,144.53,5.64]
[1718479763816,6.1344,144.58,144.53,5.64]
[1718479763992,6.1344,144.58,144.52,5.64]
[1718479764591,5.64,144.56,144.5,0.51]
[1718479764789,5.64,144.56,144.51,5.64]
[1718479765117,5.64,144.56,144.5,5.64]
[1718479765997,5.64,144.56,144.48,20.0]
[1718479766298,5.64,144.56,144.5,5.64]
[1718479768120,6.1344,144.58,144.49,0.51]
[1718479768309,6.1344,144.58,144.53,5.64]
[1718479768627,6.1344,144.58,144.55,5.64]
[1718479769291,6.1344,144.58,144.56,5.64]
[1718479770099,15.9933,144.59,144.57,5.64]
[1718479774701,15.9933,144.59,144.56,5.64]
[1718479780127,15.9933,144.59,144.52,0.17]
[1718479780128,15.9933,144.59,144.51,0.17]
[1718479780341,15.9933,144.59,144.55,5.64]
[1718479780905,15.9933,144.59,144.54,5.64]
[1718479781309,15.9933,144.59,144.51,0.68]
[1718479781502,21.6333,144.59,144.51,0.68]
[1718479781727,6.2097,144.58,144.53,5.64]
[1718479783415,11.8497,144.58,144.52,5.64]
[1718479785127,5.64,144.56,144.47,15.191]
[1718479785303,5.64,144.56,144.5,5.64]
[1718479786202,5.64,144.56,144.51,5.64]
[1718479786840,5.64,144.57,144.51,5.64]
[1718479788934,5.64,144.56,144.51,5.64]
[1718479789331,5.64,144.56,144.5,5.64]
[1718479789820,5.64,144.56,144.51,5.64]
[1718479793618,5.64,144.56,144.47,15.191]
[1718479793832,15.0886,144.55,144.51,5.64]
[1718479794045,15.0886,144.55,144.5,5.64]
[1718479797143,15.0886,144.55,144.51,5.64]
[1718479798941,15.0886,144.55,144.49,0.17]
[1718479799120,15.0886,144.55,144.52,5.64]
[1718479800329,15.0886,144.55,144.48,23.07]
[1718479800532,15.0886,144.55,144.49,20.0]
[1718479800852,15.0886,144.55,144.51,5.64]
[1718479801452,8.7689,144.58,144.49,20.0]
[1718479801453,21.2983,144.58,144.49,20.0]
[1718479801646,21.2983,144.58,144.53,5.64]
[1718479802457,21.2983,144.58,144.55,5.64]
[1718479807850,21.2983,144.58,144.56,5.64]
[1718479808154,15.0886,144.61,144.56,5.64]
[1718479811262,15.0886,144.61,144.52,0.17]
[1718479811462,15.0886,144.61,144.56,5.64]
[1718479813226,15.0886,144.61,144.55,0.17]
[1718479813227,28.0817,144.65,144.57,0.17]
[1718479813453,28.0817,144.65,144.6,5.64]
[1718479819055,22.4417,144.65,144.6,5.64]
[1718479823185,5.64,144.64,144.58,5.64]
[1718479823990,5.64,144.63,144.57,5.64]
[1718479824290,0.17,144.64,144.56,20.0]
[1718479824498,22.0,144.6,144.54,5.64]
[1718479824653,16.36,144.6,144.55,5.64]
[1718479825167,16.36,144.6,144.56,5.64]
[1718479826189,16.36,144.64,144.58,5.64]
[1718479826364,16.36,144.64,144.54,100.0]
[1718479826365,16.36,144.64,144.59,5.64]
[1718479827471,16.36,144.64,144.6,5.64]
[1718479828597,16.4463,144.68,144.58,100.0]
[1718479828764,16.4463,144.68,144.64,5.64]
[1718479828968,16.4463,144.68,144.59,20.68]
[1718479829299,16.4463,144.68,144.64,5.64]
[1718479829464,16.4463,144.68,144.59,0.68]
[1718479829666,16.4463,144.68,144.63,5.64]
[1718479829887,22.0863,144.68,144.63,5.64]
[1718479830970,16.4463,144.68,144.63,5.64]
[1718479831177,19.0038,144.68,144.59,0.68]
[1718479831487,5.64,144.67,144.61,5.64]
[1718479831973,5.64,144.66,144.61,5.64]
[1718479832374,5.64,144.67,144.61,5.64]
[1718479832574,5.64,144.67,144.62,5.64]
[1718479832875,22.0863,144.68,144.63,5.64]
[1718479833176,16.4463,144.68,144.63,5.64]
[1718479837474,22.0863,144.68,144.63,5.64]
[1718479840795,29.7585,144.68,144.59,0.68]
[1718479840975,8.1977,144.66,144.57,20.0]
[1718479841317,5.64,144.66,144.6,5.64]
[1718479841682,5.64,144.65,144.57,20.0]
[1718479841987,5.64,144.65,144.59,5.64]
[1718479842198,14.1951,144.66,144.59,5.64]
[1718479842199,6.5218,144.66,144.59,5.64]
[1718479842398,6.5218,144.66,144.6,5.64]
[1718479842613,12.1618,144.66,144.6,5.64]
[1718479843285,6.5218,144.66,144.61,5.64]
[1718479844408,6.5218,144.66,144.62,5.64]
[1718479846205,6.5218,144.66,144.61,5.64]
[1718479847307,6.5218,144.66,144.62,5.64]
[1718479847814,12.1618,144.66,144.57,0.17]
[1718479848009,6.5218,144.66,144.61,5.64]
[1718479850218,6.5218,144.66,144.62,5.64]
[1718479851288,6.5218,144.66,144.63,5.64]
[1718479853221,6.5218,144.66,144.62,5.64]
[1718479855092,6.5218,144.66,144.58,0.17]
[1718479855298,12.1618,144.66,144.61,5.64]
[1718479855508,12.1618,144.66,144.58,0.68]
[1718479855509,12.1618,144.66,144.6,5.64]
[1718479855710,12.1618,144.66,144.61,20.0]
[1718479856520,12.1618,144.66,144.6,5.64]
[1718479859504,12.1618,144.66,144.61,5.64]
[1718479860315,12.1618,144.66,144.6,5.64]
[1718479860816,12.1618,144.66,144.54,129.72668236]
[1718479860817,12.7909,144.64,144.54,24.28263731]
[1718479861148,5.64,144.62,144.52,20.0]
[1718479861301,5.64,144.62,144.56,5.64]
[1718479863491,6.4542,144.63,144.57,20.0]
[1718479863826,6.4542,144.63,144.59,5.64]
[1718479864306,6.4542,144.63,144.6,5.64]
[1718479864620,6.4542,144.63,144.59,5.64]
[1718479864933,6.4542,144.63,144.58,5.64]
[1718479865130,6.4542,144.63,144.57,20.0]
[1718479865131,6.4542,144.63,144.59,5.64]
[1718479866713,6.4542,144.63,144.61,5.64]
[1718479866942,15.6807,144.65,144.61,5.64]
[1718479867422,15.6807,144.65,144.58,0.17]
[1718479867628,6.4542,144.66,144.62,5.64]
[1718479869341,6.4542,144.66,144.63,5.64]
[1718479869518,16.5302044,144.69,144.65,5.64]
[1718479870711,0.8495044,144.69,144.67,5.64]
[1718479871637,0.8495044,144.69,144.68,5.64]
[1718479871843,0.8495044,144.69,144.68,25.64]
[1718479873124,0.8495044,144.69,144.68,25.98]
[1718479873327,0.8495044,144.69,144.68,26.32]
[1718479873518,0.8495044,144.69,144.68,31.96]
[1718479873712,0.8495044,144.69,144.68,26.32]
[1718479875447,0.8495044,144.69,144.68,131.96]
[1718479876336,15.3049,144.77,144.69,0.17]
[1718479876543,15.3049,144.8,144.76,5.64]
[1718479876767,15.3049,144.8,144.77,5.64]
[1718479877046,15.3049,144.8,144.75,5.64]
[1718479877757,15.3049,144.8,144.71,0.17]
[1718479877921,15.3049,144.8,144.76,5.64]
[1718479878111,15.3049,144.8,144.77,5.64]
[1718479878524,15.3049,144.8,144.71,0.68]
[1718479878717,15.3049,144.8,144.77,5.64]
[1718479880247,6.4329,144.81,144.78,5.64]
[1718479880721,6.4329,144.81,144.71,0.68]
[1718479880925,6.4329,144.81,144.76,5.64]
[1718479881258,6.4329,144.81,144.78,5.64]
[1718479881628,6.4329,144.81,144.79,5.64]
[1718479881920,16.1544044,144.84,144.8,5.64]
[1718479882121,16.1544044,144.84,144.82,5.64]
[1718479882323,16.1544044,144.84,144.81,5.64]
[1718479882551,16.1544044,144.84,144.77,100.17]
[1718479882722,16.1544044,144.84,144.78,20.51]
[1718479882937,0.8495044,144.84,144.78,20.51]
[1718479883257,0.8495044,144.84,144.82,5.64]
[1718479883429,0.8495044,144.84,144.83,25.64]
[1718479883637,0.8495044,144.84,144.83,5.64]
[1718479883928,0.8495044,144.84,144.83,25.64]
[1718479885447,0.8495044,144.84,144.83,20.0]
[1718479885648,0.8495044,144.84,144.78,20.0]
[1718479885948,0.8495044,144.84,144.79,5.64]
[1718479886249,0.8495044,144.84,144.77,20.0]
[1718479886434,6.4329,144.82,144.77,20.0]
[1718479886619,6.4329,144.82,144.78,5.64]
[1718479886620,21.7378,144.82,144.78,5.64]
[1718479886821,21.7378,144.82,144.79,5.64]
[1718479887673,21.7378,144.82,144.77,20.0]
[1718479887829,21.7378,144.82,144.77,5.64]
[1718479888024,21.7378,144.82,144.78,5.64]
[1718479888259,21.7378,144.82,144.73,20.0]
[1718479888260,21.7378,144.82,144.79,5.64]
[1718479888557,0.8495044,144.84,144.81,5.64]
[1718479888934,0.8495044,144.84,144.76,0.17]
[1718479889257,0.8495044,144.84,144.76,0.68]
[1718479889450,0.8495044,144.84,144.76,20.68]
[1718479889756,0.8495044,144.84,144.76,0.68]
[1718479890058,0.8495044,144.84,144.76,20.68]
[1718479890357,0.8495044,144.84,144.76,120.68]
[1718479893458,0.8495044,144.84,144.76,20.68]
[1718479894132,0.8495044,144.84,144.76,20.17]
[1718479895071,0.8495044,144.84,144.76,20.0]
[1718479895565,0.8495044,144.84,144.73,20.0]
[1718479895745,3.4040044,144.84,144.73,20.0]
[1718479895949,8.5130044,144.84,144.73,20.0]
[1718479896262,3.4040044,144.84,144.73,20.0]
[1718479896463,0.8495044,144.84,144.74,0.17]
[1718479897054,0.8495044,144.84,144.74,0.51]
[1718479898998,0.8495044,144.84,144.75,0.17]
[1718479899283,0.17,144.81,144.73,20.0]
[1718479899454,0.34,144.81,144.7,20.0]
[1718479899844,22.7461,144.8,144.7,20.0]
[1718479900056,25.3014,144.8,144.69,20.0]
[1718479900248,30.4119,144.8,144.68,32.1207]
[1718479900453,0.34,144.79,144.68,16.83]
[1718479901072,0.17,144.78,144.68,16.83]
[1718479901271,2.8954,144.79,144.68,16.83]
[1718479901463,0.17,144.79,144.68,16.83]
[1718479901651,22.7461,144.8,144.69,20.0]
[1718479901852,22.7461,144.8,144.69,120.0]
[1718479902562,22.7461,144.8,144.7,0.68]
[1718479906484,27.8566,144.8,144.7,0.34]
[1718479906650,6.4806,144.75,144.69,20.0]
[1718479906852,6.4806,144.75,144.67,20.0]
[1718479907069,6.4806,144.75,144.65,20.0]
[1718479907782,6.4806,144.75,144.65,40.76]
[1718479907945,6.4806,144.75,144.66,0.34]
[1718479908146,6.4806,144.75,144.65,40.76]
[1718479908646,6.4806,144.75,144.65,20.0]
[1718479909076,6.4806,144.75,144.64,16.83]
[1718479909782,15.4568,144.74,144.62,37.28442122]
[1718479910281,15.4568,144.74,144.63,0.17]
[1718479910672,15.4568,144.74,144.62,16.52442122]
[1718479910854,6.5036,144.73,144.61,100.0]
[1718479911057,6.5036,144.73,144.6,32.4493]
[1718479911280,6.5036,144.73,144.61,100.0]
[1718479911458,6.5036,144.73,144.6,72.48892122]
[1718479911670,6.5036,144.73,144.61,20.0]
[1718479912166,6.5036,144.73,144.61,120.0]
[1718479912880,6.5036,144.73,144.62,0.17]
[1718479913074,6.5036,144.73,144.62,0.68]
[1718479914379,15.4568,144.72,144.62,0.68]
[1718479916973,6.8436,144.71,144.61,20.0]
[1718479918056,6.5036,144.71,144.62,0.17]
[1718479918286,6.5036,144.71,144.62,0.68]
[1718479919094,12.1236,144.71,144.65,5.62]
[1718479919274,12.1236,144.71,144.66,20.0]
[1718479920572,15.4568,144.69,144.66,20.0]
[1718479920774,12.1236,144.68,144.66,20.0]
[1718479920973,12.1236,144.68,144.57,100.0]
[1718479921301,21.0768,144.66,144.57,15.4568]
[1718479921463,21.0768,144.66,144.6,5.62]
[1718479922967,15.4568,144.66,144.55,16.87]
[1718479923385,15.4568,144.66,144.58,16.87]
[1718479923571,15.4568,144.66,144.59,20.51]
[1718479924974,15.4568,144.66,144.6,0.17]
[1718479929097,6.5036,144.68,144.62,120.93]
[1718479929302,15.2378,144.69,144.64,17.04]
[1718479929609,15.2378,144.69,144.65,20.51]
[1718479930300,6.6174,144.72,144.66,0.17]
[1718479935795,6.6174,144.72,144.65,20.51]
[1718479936306,6.6174,144.72,144.65,20.0]
[1718479936606,15.2378,144.71,144.61,16.87]
[1718479937495,15.2378,144.71,144.62,0.17]
[1718479937697,15.2378,144.71,144.62,0.34]
[1718479937907,15.2378,144.69,144.62,20.0]
[1718479938111,15.2378,144.69,144.6,20.0]
[1718479938405,6.6174,144.68,144.56,120.76]
[1718479938790,6.6174,144.68,144.58,100.0]
[1718479939278,6.6174,144.68,144.56,129.18688391]
[1718479939804,6.6174,144.68,144.58,0.17]
[1718479940215,6.6174,144.68,144.58,100.17]
[1718479940397,6.6174,144.68,144.59,0.51]
[1718479940714,6.6174,144.68,144.59,20.51]
[1718479940888,6.6174,144.68,144.59,0.34]
[1718479941090,6.6174,144.68,144.58,0.51]
[1718479941314,6.6174,144.68,144.59,0.17]
[1718479941497,6.6174,144.68,144.6,0.17]
[1718479941698,6.6174,144.68,144.6,0.51]
[1718479945492,6.6174,144.68,144.6,0.34]
[1718479945813,6.6174,144.68,144.59,20.17]
[1718479945814,6.6174,144.66,144.57,20.0]
[1718479946298,15.2378,144.65,144.57,20.0]
[1718479946628,15.2378,144.65,144.56,20.0]
[1718479947620,15.2378,144.65,144.57,0.51]
[1718479951701,15.2378,144.65,144.58,0.17]
[1718479955118,6.3165,144.64,144.57,0.51]
[1718479955902,6.3165,144.64,144.58,0.17]
[1718479956926,6.3165,144.64,144.61,5.62]
[1718479958213,6.3165,144.64,144.62,5.62]
[1718479961426,6.3165,144.64,144.63,25.62]
[1718479965495,6.3165,144.64,144.63,20.0]
[1718479965696,6.3165,144.64,144.58,0.17]
[1718479965908,6.3165,144.64,144.61,5.62]
[1718479966110,6.3165,144.64,144.62,20.0]
[1718479967295,6.3165,144.64,144.62,25.62]
[1718479967496,6.3165,144.64,144.63,20.0]
[1718479968301,6.3165,144.64,144.63,25.62]
[1718479976921,15.2378,144.65,144.63,25.62]
[1718479978212,6.2122,144.67,144.64,5.62]
[1718479978408,15.3406,144.72,144.63,20.0]
[1718479978409,16.6283,144.68,144.66,5.62]
[1718479981734,6.2122,144.71,144.63,20.0]
[1718479981735,6.2122,144.71,144.67,5.62]
[1718479981917,16.6283,144.72,144.7,5.62]
[1718479982111,6.2122,144.75,144.71,25.62]
[1718479982318,6.2122,144.75,144.72,5.62]
[1718479986456,16.6283,144.76,144.72,5.62]
[1718479986643,6.2122,144.79,144.75,5.62]
[1718479986851,6.2122,144.79,144.77,5.62]
[1718479987658,16.6283,144.81,144.78,5.62]
[1718479988821,6.2122,144.83,144.79,5.62]